bitfinex-derivatives/quotes_SOLF0:USTF0_20240913
["timestamp","ask_amount","ask_price","bid_price","bid_amount"]
[1726230039009,3.7735,132.5,132.47,13.91]
[1726230039208,17.6835,132.5,132.47,3.7742]
[1726230039707,0.8022,132.51,132.47,3.7742]
[1726230039910,0.8022,132.51,132.47,13.91]
[1726230040115,14.7122,132.51,132.47,13.91]
[1726230040407,18.4853,132.51,132.48,3.7738]
[1726230040608,18.4853,132.51,132.44,6.52268783]
[1726230040811,17.6834,132.5,132.44,6.52268783]
[1726230041004,17.6834,132.5,132.45,13.91]
[1726230041306,0.8022,132.51,132.45,13.91]
[1726230041307,13.91,132.49,132.46,3.7744]
[1726230041510,17.6837,132.49,132.46,3.7744]
[1726230044305,13.91,132.49,132.46,3.7744]
[1726230045111,17.6835,132.5,132.47,3.7742]
[1726230045312,17.6835,132.5,132.45,13.91]
[1726230045509,17.6835,132.5,132.46,3.7742]
[1726230046012,3.7738,132.49,132.44,1.3279]
[1726230046213,3.7738,132.49,132.44,15.2379]
[1726230046910,3.7738,132.49,132.45,3.7747]
[1726230047721,3.774,132.48,132.45,3.7747]
[1726230050320,17.6838,132.49,132.45,3.7747]
[1726230052220,17.6838,132.49,132.46,3.7744]
[1726230052412,1.4053,132.52,132.46,13.91]
[1726230052619,13.91,132.51,132.46,13.91]
[1726230053315,17.6832,132.51,132.47,3.774]
[1726230054823,17.6835,132.5,132.46,3.7743]
[1726230055126,13.91,132.49,132.43,1.3736]
[1726230055325,3.7741,132.48,132.44,3.7749]
[1726230056122,17.6841,132.48,132.44,3.7749]
[1726230056315,13.91,132.47,132.43,3.7752]
[1726230057317,3.7745,132.46,132.42,26.46360782]
[1726230057518,1.4053,132.52,132.42,22.68810782]
[1726230057723,13.91,132.48,132.45,3.7747]
[1726230058222,17.684,132.48,132.44,3.7749]
[1726230059126,13.91,132.47,132.44,3.7749]
[1726230061821,13.91,132.47,132.44,3.775]
[1726230063021,17.6843,132.47,132.43,13.91]
[1726230063721,3.7745,132.46,132.43,17.6852]
[1726230063922,13.91,132.49,132.44,13.91]
[1726230064124,13.91,132.48,132.43,3.7752]
[1726230064324,13.91,132.46,132.42,12.55360782]
[1726230064821,17.70078402,132.46,132.42,8.77810782]
[1726230065017,3.7749,132.45,132.42,8.77810782]
[1726230067421,17.6848,132.45,132.42,8.77810782]
[1726230067623,13.91,132.45,132.42,8.77810782]
[1726230068027,3.7751,132.44,132.42,8.77810782]
[1726230070230,3.7751,132.44,132.43,13.91]
[1726230070433,3.7749,132.45,132.43,13.91]
[1726230070629,17.6849,132.45,132.42,8.77810782]
[1726230071834,3.7751,132.44,132.42,8.77810782]
[1726230072032,13.91,132.45,132.42,8.77810782]
[1726230072234,17.685,132.45,132.42,8.77810782]
[1726230074635,3.7751,132.44,132.42,8.77810782]
[1726230074833,13.91,132.45,132.42,12.55360782]
[1726230075230,17.6849,132.45,132.42,12.55360782]
[1726230076132,17.6849,132.45,132.42,8.77810782]
[1726230076738,3.7749,132.45,132.42,8.77810782]
[1726230079233,13.91,132.44,132.42,8.77810782]
[1726230081236,3.7753,132.43,132.42,8.77810782]
[1726230081736,1.4014,132.44,132.42,8.77810782]
[1726230081930,13.91,132.45,132.42,8.77810782]
[1726230082733,17.6558478,132.45,132.42,12.55370782]
[1726230082937,13.91,132.45,132.42,12.55370782]
[1726230084034,17.6848,132.45,132.42,12.55370782]
[1726230084233,13.91,132.44,132.42,8.77810782]
[1726230084833,17.6851,132.44,132.42,8.77810782]
[1726230086434,3.80061718,132.46,132.42,8.77810782]
[1726230086435,13.91,132.43,132.42,8.77810782]
[1726230087235,17.6853,132.43,132.42,8.77810782]
[1726230088942,13.91,132.43,132.42,8.77810782]
[1726230089337,2.6562,132.45,132.42,8.77810782]
[1726230089637,13.91,132.44,132.42,8.77810782]
[1726230090143,6.4311,132.45,132.42,12.55350782]
[1726230090545,13.91,132.44,132.42,12.55350782]
[1726230092138,17.6852,132.44,132.42,8.77810782]
[1726230096545,17.6853,132.43,132.42,2.23750782]
[1726230096742,17.6853,132.43,132.33,13.91]
[1726230096743,13.91,132.43,132.33,13.91]
[1726230096932,13.91,132.38,132.34,13.91]
[1726230098042,13.91,132.38,132.35,3.7775]
[1726230098244,13.91,132.38,132.32,7.84362701]
[1726230098245,13.91,132.36,132.32,4.1281]
[1726230098449,13.91,132.36,132.32,7.9064]
[1726230098646,13.91,132.36,132.32,3.7783]
[1726230098849,13.91,132.33,132.28,1.343]
[1726230099052,13.91,132.33,132.29,3.7792]
[1726230099246,13.91,132.33,132.28,15.253]
[1726230099749,13.91,132.33,132.3,3.7789]
[1726230100046,13.91,132.33,132.29,13.91]
[1726230100250,3.81329965,132.36,132.28,1.343]
[1726230100438,13.91,132.33,132.29,13.91]
[1726230100642,13.91,132.33,132.29,17.6891]
[1726230100953,13.91,132.33,132.29,13.91]
[1726230101345,13.91,132.32,132.29,17.6892]
[1726230102152,13.91,132.32,132.28,15.253]
[1726230102352,38.1242027,132.44,132.29,13.91]
[1726230102656,13.91,132.34,132.31,3.7786]
[1726230103250,13.91,132.35,132.31,3.7786]
[1726230103452,17.6877,132.35,132.31,17.6886]
[1726230104648,13.91,132.35,132.31,17.6886]
[1726230105359,7.63398954,132.37,132.32,13.91]
[1726230105658,2.6562,132.45,132.34,13.91]
[1726230105852,13.91,132.39,132.34,13.91]
[1726230106253,13.91,132.39,132.28,1.343]
[1726230106254,2.6562,132.45,132.36,13.91]
[1726230106557,13.91,132.4,132.36,13.91]
[1726230107551,13.91,132.4,132.37,3.7769]
[1726230108547,13.91,132.4,132.36,13.91]
[1726230108753,2.6562,132.45,132.38,17.6865]
[1726230108954,13.91,132.42,132.38,17.6865]
[1726230109157,13.91,132.42,132.38,3.7765]
[1726230109557,17.6857,132.42,132.38,3.7765]
[1726230111657,17.686,132.41,132.38,3.7765]
[1726230111958,13.91,132.41,132.38,3.7765]
[1726230112153,17.6859,132.41,132.38,3.7765]
[1726230112755,13.91,132.41,132.38,3.7765]
[1726230112957,13.91,132.41,132.37,3.7769]
[1726230113157,17.6861,132.41,132.37,3.7769]
[1726230113561,17.6861,132.41,132.36,13.91]
[1726230113963,17.6861,132.41,132.37,3.7769]
[1726230114367,17.6861,132.41,132.36,13.91]
[1726230114760,13.91,132.41,132.38,3.7767]
[1726230115156,13.91,132.41,132.36,13.91]
[1726230115356,17.686,132.41,132.37,17.6868]
[1726230115954,3.776,132.41,132.37,17.6868]
[1726230117663,3.7764,132.4,132.36,3.7771]
[1726230117864,17.6864,132.4,132.36,3.7771]
[1726230118961,17.6864,132.4,132.36,17.6871]
[1726230119367,13.91,132.4,132.34,1.4269]
[1726230119555,17.7340583,132.4,132.34,15.3369]
[1726230119760,3.7766,132.39,132.35,3.7775]
[1726230120468,13.91,132.36,132.34,1.4269]
[1726230120678,13.91,132.35,132.3,13.91]
[1726230120863,13.91,132.35,132.29,1.3224]
[1726230121168,13.91,132.35,132.3,13.91]
[1726230121868,1.3338,132.39,132.32,13.91]
[1726230122074,13.91,132.37,132.33,13.91]
[1726230122371,3.7772,132.37,132.32,13.91]
[1726230122558,13.91,132.37,132.31,13.91]
[1726230122760,13.91,132.35,132.31,3.7786]
[1726230122956,13.91,132.35,132.31,13.91]
[1726230123665,13.91,132.32,132.15,3.12279602]
[1726230123862,7.892096,132.46,132.23,13.91]
[1726230124069,3.78,132.27,132.21,3.7814]
[1726230124258,17.69,132.27,132.21,3.7814]
[1726230124466,13.91,132.27,132.21,3.7814]
[1726230124659,13.91,132.27,132.19,1.3997]
[1726230124660,17.69,132.27,132.22,17.6913]
[1726230124865,3.78,132.27,132.24,13.91]
[1726230125071,3.74168087,132.29,132.24,13.91]
[1726230125271,17.69,132.27,132.21,3.7815]
[1726230125468,3.86954339,132.29,132.19,1.3997]
[1726230125666,7.5547,132.37,132.22,13.91]
[1726230125867,13.91,132.28,132.23,3.781]
[1726230126166,13.91,132.28,132.22,13.91]
[1726230126569,13.91,132.28,132.24,3.7806]
[1726230127168,13.91,132.27,132.24,3.7806]
[1726230127371,13.91,132.27,132.23,3.7809]
[1726230128364,13.91,132.28,132.23,17.6909]
[1726230129666,17.6909,132.24,132.18,3.7824]
[1726230129874,13.91,132.26,132.21,13.91]
[1726230130270,13.91,132.27,132.22,3.7811]
[1726230130474,13.91,132.27,132.21,13.91]
[1726230130776,3.87538788,132.35,132.24,13.91]
[1726230130978,13.91,132.3,132.24,13.91]
[1726230131279,13.91,132.3,132.25,1.3431]
[1726230132182,13.91,132.26,131.95,1.21271617]
[1726230132478,22.68,132.25,131.98,3.74366916]
[1726230132668,13.91,132.06,131.98,3.74366916]
[1726230132869,13.91,132.07,131.95,1.21271617]
[1726230133065,13.91,132.07,132.01,13.91]
[1726230133270,13.91,132.07,132.01,3.7873]
[1726230133271,13.91,132.04,132.01,3.7873]
[1726230133470,22.68,132.23,131.95,4.91705789]
[1726230133471,13.91,132.03,131.95,4.91705789]
[1726230133671,13.91,132.01,131.95,1.21271617]
[1726230133873,13.91,132.03,131.97,3.7884]
[1726230134073,3.79812253,132.07,131.95,1.21271617]
[1726230134271,3.79812253,132.07,131.79,1.68933984]
[1726230134272,7.31498371,132.06,131.79,1.68933984]
[1726230134484,34.92,132.01,131.87,34.92]
[1726230134778,22.80937016,132.0,131.89,34.92]
[1726230134971,22.80937016,131.99,131.89,34.92]
[1726230135169,19.01895764,131.98,131.89,34.92]
[1726230135478,9.26685559,132.02,131.86,37.7794]
[1726230135479,7.31498371,131.97,131.93,34.92]
[1726230135681,9.26685559,132.03,131.93,3.7549291]
[1726230135978,8.67962069,132.08,131.98,34.92]
[1726230136186,15.97958755,132.07,131.99,1.3722]
[1726230136375,3.7829651,132.08,131.99,1.3722]
[1726230136581,12.19283739,132.07,131.99,1.3722]
[1726230136782,34.92,132.13,132.0,34.92]
[1726230136977,15.83260634,132.12,132.0,34.92]
[1726230137192,34.92,132.15,132.03,34.92]
[1726230137391,15.83281514,132.14,131.99,1.3722]
[1726230137589,15.83281514,132.14,132.03,34.92]
[1726230137790,15.83281514,132.13,132.03,34.92]
[1726230137989,12.04526348,132.12,132.03,34.92]
[1726230138295,34.92,132.16,132.03,34.92]
[1726230138492,15.83726198,132.15,132.05,34.92]
[1726230138685,15.83726198,132.15,132.1,3.7845]
[1726230138888,12.05037243,132.15,132.05,34.92]
[1726230139089,12.05037243,132.14,132.05,34.92]
[1726230139291,34.92,132.18,132.05,34.92]
[1726230139495,15.83915339,132.17,132.05,34.92]
[1726230139800,34.92,132.11,131.99,1.3722]
[1726230140292,34.92,132.14,132.01,34.92]
[1726230140499,12.04879513,132.13,132.01,34.92]
[1726230140906,12.04879513,132.12,132.01,34.92]
[1726230141095,12.04879513,132.11,132.02,1.3791]
[1726230141289,34.92,132.14,132.02,1.3791]
[1726230141492,15.83499212,132.13,132.02,1.3791]
[1726230141695,12.04760339,132.12,132.02,1.3791]
[1726230141896,12.04760339,132.11,132.02,1.3791]
[1726230142202,34.92,132.14,132.02,1.3791]
[1726230142392,25.10633537,132.13,132.02,1.3791]
[1726230142592,15.83601845,132.13,132.02,1.3791]
[1726230142891,15.83601845,132.13,132.08,3.7853]
[1726230143092,15.83601845,132.13,132.02,1.3791]
[1726230143289,12.04876795,132.12,132.04,34.92]
[1726230143495,9.27031692,132.14,132.04,34.92]
[1726230143695,25.10626423,132.15,132.04,34.92]
[1726230143902,12.04878928,132.14,132.04,34.92]
[1726230144203,9.27254148,132.16,132.04,34.92]
[1726230144404,12.05189399,132.15,132.04,34.92]
[1726230144599,12.05189399,132.14,132.12,3.7842]
[1726230144906,9.27254148,132.16,132.04,34.92]
[1726230145106,9.27254148,132.16,132.11,3.7843]
[1726230145397,25.11128659,132.15,132.06,34.92]
[1726230145603,12.05230007,132.14,132.13,3.7839]
[1726230145807,9.27254148,132.17,132.13,3.7839]
[1726230146101,9.27254148,132.17,132.06,34.92]
[1726230146298,9.27254148,132.19,132.09,34.92]
[1726230146493,15.84236712,132.19,132.1,1.3599]
[1726230146694,12.05668975,132.18,132.1,1.3599]
[1726230146899,9.27254148,132.2,132.16,3.783]
[1726230147206,12.05807314,132.19,132.11,36.2522]
[1726230147403,25.11597042,132.21,132.13,34.92]
[1726230147710,9.27254148,132.22,132.13,34.92]
[1726230147892,7.53945958,132.21,132.13,34.92]
[1726230148203,9.27254148,132.25,132.16,34.92]
[1726230148505,34.92,132.27,132.16,34.92]
[1726230148506,19.60781378,132.24,132.16,34.92]
[1726230148700,7.54146684,132.23,132.16,34.92]
[1726230148999,34.92,132.27,132.21,3.7814]
[1726230149207,34.92,132.29,132.16,34.92]
[1726230149503,34.92,132.29,132.18,34.92]
[1726230149699,34.92,132.29,132.19,1.4247]
[1726230149906,34.92,132.29,132.22,3.7813]
[1726230150607,3.7799,132.27,132.21,3.7815]
[1726230150991,3.78,132.27,132.2,3.7816]
[1726230151406,3.78,132.27,132.19,1.4247]
[1726230152093,3.7797,132.28,132.19,1.4247]
[1726230152709,3.7797,132.28,132.21,3.7814]
[1726230152907,3.7797,132.28,132.19,1.4247]
[1726230153310,34.92,132.31,132.19,1.4247]
[1726230153502,6.79544064,132.3,132.19,1.4247]
[1726230153696,34.92,132.24,132.11,1.3322]
[1726230154005,34.92,132.24,132.14,1.387]
[1726230154811,3.7812,132.23,132.17,3.7826]
[1726230155311,38.7008,132.24,132.18,3.7823]
[1726230155705,34.92,132.24,132.14,1.387]
[1726230156608,38.701,132.24,132.18,3.7825]
[1726230157205,34.92,132.26,132.14,1.387]
[1726230157502,1.3274,132.28,132.15,34.92]
[1726230157704,1.3274,132.28,132.21,3.7814]
[1726230157705,10.5751175,132.27,132.21,3.7814]
[1726230157904,1.3274,132.28,132.21,3.7814]
[1726230158108,6.79534023,132.27,132.21,3.7814]
[1726230158409,1.3274,132.28,132.21,3.7814]
[1726230158611,41.71520227,132.27,132.19,3.782]
[1726230158804,34.92,132.27,132.15,34.92]
[1726230159197,3.7803,132.26,132.2,3.7817]
[1726230159502,3.7803,132.26,132.11,1.3322]
[1726230159503,3.87088576,132.26,132.11,1.3322]
[1726230159702,34.92,132.2,132.12,1.4483]
[1726230160103,34.92,132.2,132.13,3.7837]
[1726230160104,3.7825,132.19,132.13,3.7837]
[1726230160700,3.7825,132.19,132.12,1.4483]
[1726230160896,3.7825,132.19,132.14,3.7836]
[1726230161511,38.7021,132.2,132.15,3.7833]
[1726230161712,38.7021,132.2,132.12,1.4483]
[1726230162210,38.7021,132.2,132.14,3.7834]
[1726230162405,38.7021,132.2,132.12,1.4483]
[1726230162604,38.7021,132.2,132.15,3.7833]
[1726230162804,34.92,132.2,132.12,1.4483]
[1726230163005,34.92,132.2,132.12,5.2323]
[1726230163202,3.7832,132.16,132.12,1.4483]
[1726230163406,34.92,132.18,132.12,1.4483]
[1726230163810,34.92,132.2,132.12,1.4483]
[1726230164313,34.92,132.2,132.11,1.3322]
[1726230165007,3.7829,132.17,132.12,3.784]
[1726230165204,34.92,132.2,132.11,1.3322]
[1726230165403,3.7826,132.18,132.13,3.7838]
[1726230165715,34.92,132.2,132.11,1.3322]
[1726230166711,34.92,132.22,132.11,1.3322]
[1726230167103,3.783,132.17,132.11,5.1165]
[1726230167506,3.7832,132.16,132.11,1.3322]
[1726230167816,34.92,132.17,132.11,1.3322]
[1726230168011,38.7029,132.17,132.11,5.1165]
[1726230168209,38.7029,132.17,132.11,1.3322]
[1726230168610,34.92,132.15,132.01,17.567]
[1726230168809,34.92,132.15,132.02,39.038]
[1726230169003,34.92,132.15,132.02,40.42928813]
[1726230169210,3.7839,132.14,132.02,39.038]
[1726230169606,34.92,132.13,132.02,39.038]
[1726230169812,34.92,132.13,132.02,4.118]
[1726230170104,3.7843,132.12,132.05,3.786]
[1726230170507,34.92,132.13,132.02,4.118]
[1726230170710,38.7039,132.13,132.06,3.7856]
[1726230170911,34.92,132.13,132.02,4.118]
[1726230171814,1.346,132.19,132.02,4.118]
[1726230172016,34.92,132.15,132.03,34.92]
[1726230172421,38.7034,132.15,132.08,3.7851]
[1726230172725,38.7034,132.15,132.03,34.92]
[1726230173016,3.7837,132.14,132.08,3.7851]
[1726230173610,38.7036,132.15,132.08,3.7852]
[1726230173818,34.92,132.15,132.08,3.7852]
[1726230174217,34.92,132.15,132.03,34.92]
[1726230174819,34.92,132.15,132.06,34.92]
[1726230175414,34.92,132.15,132.02,4.118]
[1726230175620,34.92,132.18,132.05,34.92]
[1726230176025,3.7831,132.16,132.1,3.7846]
[1726230176825,3.7834,132.15,132.05,34.92]
[1726230177324,3.7834,132.15,132.1,3.7847]
[1726230178023,3.7834,132.15,132.09,3.7849]
[1726230178223,3.7831,132.16,132.05,34.92]
[1726230178520,34.92,132.18,132.09,3.7849]
[1726230178719,3.7834,132.15,132.09,3.7849]
[1726230179118,3.7834,132.15,132.05,34.92]
[1726230180127,3.7838,132.14,132.05,34.92]
[1726230180426,34.92,132.15,132.05,34.92]
[1726230181122,38.7035,132.15,132.05,34.92]
[1726230181724,3.7837,132.14,132.09,3.7849]
[1726230182026,34.92,132.15,132.03,34.92]
[1726230182226,3.7842,132.13,132.03,34.92]
[1726230182427,34.92,132.15,132.03,34.92]
[1726230182730,34.92,132.15,132.08,3.7852]
[1726230183028,3.784,132.13,132.08,3.7852]
[1726230183523,34.92,132.15,132.08,3.7852]
[1726230183924,3.7838,132.14,132.03,34.92]
[1726230184127,34.92,132.15,132.03,34.92]
[1726230184631,34.92,132.13,132.02,4.118]
[1726230184826,1.3855,132.12,132.02,4.118]
[1726230185027,3.7851,132.09,132.04,3.7864]
[1726230185417,34.92,132.11,132.04,3.7864]
[1726230185724,3.7852,132.09,132.04,3.7864]
[1726230185916,34.92,132.11,132.05,3.7862]
[1726230186121,1.3855,132.12,132.02,4.118]
[1726230186424,1.3855,132.12,132.09,3.785]
[1726230186629,1.3963,132.14,132.09,3.785]
[1726230186829,3.7835,132.15,132.08,34.92]
[1726230187023,34.92,132.19,132.11,3.7844]
[1726230187226,3.7831,132.16,132.11,3.7844]
[1726230188934,3.7831,132.16,132.1,3.7847]
[1726230189134,3.7831,132.16,132.09,2.7536]
[1726230189734,34.92,132.19,132.09,2.7536]
[1726230190033,6.49183562,132.18,132.09,2.7536]
[1726230190240,6.49183562,132.17,132.09,2.7536]
[1726230190427,3.783,132.17,132.11,3.7845]
[1726230190827,3.7833,132.16,132.09,2.7536]
[1726230191030,34.92,132.19,132.1,3.7847]
[1726230191432,16.87894525,132.18,132.09,2.7536]
[1726230191633,6.49190202,132.17,132.09,2.7536]
[1726230191835,10.27510202,132.16,132.11,3.7843]
[1726230192035,34.92,132.19,132.09,2.7536]
[1726230192246,16.88263813,132.18,132.09,2.7536]
[1726230192541,20.66543813,132.17,132.09,2.7536]
[1726230192743,6.49332236,132.16,132.09,2.7536]
[1726230193129,6.49332236,132.16,132.11,3.7843]
[1726230193543,3.7828,132.17,132.11,3.7843]
[1726230193734,6.49446058,132.16,132.12,3.7842]
[1726230194038,3.7828,132.17,132.12,3.7842]
[1726230194234,6.49441286,132.16,132.12,3.7842]
[1726230194541,3.7831,132.16,132.11,3.7844]
[1726230195038,3.7829,132.17,132.09,2.7536]
[1726230195245,34.92,132.13,132.02,1.4281]
[1726230195440,1.3627,132.12,132.03,1.4464]
[1726230195745,9.24554255,132.12,132.03,1.4464]
[1726230195947,3.7849,132.1,132.04,3.7864]
[1726230196646,6.49178534,132.09,132.04,3.7864]
[1726230196837,6.49178534,132.09,132.03,1.4464]
[1726230196838,3.7849,132.1,132.03,1.4464]
[1726230197033,3.7849,132.1,132.04,3.7865]
[1726230197034,6.49179119,132.09,132.04,3.7865]
[1726230197234,3.7849,132.1,132.04,3.7865]
[1726230197432,6.49173055,132.09,132.04,3.7865]
[1726230197637,6.49158738,132.08,132.05,3.7861]
[1726230197832,34.92,132.11,132.05,3.7861]
[1726230198037,16.87866794,132.1,132.05,3.7861]
[1726230199253,16.87866794,132.1,132.07,3.7854]
[1726230199541,6.49179536,132.09,132.07,3.7854]
[1726230199748,2.753,132.12,132.07,3.7854]
[1726230199936,16.88067802,132.11,132.07,3.7854]
[1726230200133,16.88067802,132.1,132.06,3.7859]
[1726230200339,6.49256847,132.09,132.06,3.7859]
[1726230200640,6.5374,132.12,132.06,3.7859]
[1726230200853,16.88057577,132.11,132.06,3.7859]
[1726230201046,6.5374,132.12,132.06,3.7859]
[1726230201236,2.753,132.12,132.06,3.7859]
[1726230201443,20.6653182,132.11,132.06,3.7859]
[1726230201745,16.8807182,132.1,132.07,3.7856]
[1726230201944,6.49258392,132.09,132.07,3.7856]
[1726230202136,6.5374,132.12,132.03,36.3664]
[1726230202333,16.88066456,132.11,132.06,3.7858]
[1726230202543,16.88066456,132.1,132.06,3.7858]
[1726230202742,16.88066456,132.09,132.06,3.7858]
[1726230202938,2.753,132.12,132.06,3.7858]
[1726230203138,16.88059275,132.11,132.07,3.7856]
[1726230203340,16.88059275,132.1,132.07,3.7856]
[1726230203540,6.49253567,132.09,132.07,3.7856]
[1726230203735,6.49253567,132.08,132.07,3.7856]
[1726230204044,1.3627,132.12,132.08,3.7853]
[1726230204537,16.88267069,132.11,132.08,3.7853]
[1726230204739,1.3627,132.12,132.08,3.7853]
[1726230204940,6.49336138,132.11,132.08,3.7853]
[1726230205248,1.3627,132.12,132.08,3.7853]
[1726230205549,6.49330162,132.11,132.08,3.7853]
[1726230205750,1.3627,132.12,132.03,36.3664]
[1726230205751,6.49330162,132.1,132.03,36.3664]
[1726230205945,1.3627,132.12,132.03,36.3664]
[1726230206147,3.7849,132.1,132.05,3.786]
[1726230206450,6.49264315,132.09,132.03,36.3664]
[1726230206640,1.3627,132.12,132.03,36.3664]
[1726230206943,9.98355671,132.11,132.06,3.7858]
[1726230207151,6.19895671,132.1,132.06,3.7858]
[1726230207344,3.7846,132.11,132.06,3.7858]
[1726230207648,3.7846,132.11,132.07,3.7856]
[1726230207851,6.1989018,132.1,132.07,3.7856]
[1726230208042,3.7846,132.11,132.07,3.7856]
[1726230208359,6.1987947,132.1,132.07,3.7856]
[1726230208551,3.7846,132.11,132.07,3.7856]
[1726230208847,6.19872235,132.1,132.03,36.3664]
[1726230209054,1.3627,132.12,132.03,36.3664]
[1726230209347,6.19839251,132.11,132.03,36.3664]
[1726230209545,9.98339251,132.1,132.03,36.3664]
[1726230209851,1.3627,132.12,132.03,36.3664]
[1726230210048,9.98307345,132.11,132.06,3.7857]
[1726230210247,3.7846,132.11,132.03,36.3664]
[1726230210442,6.1984682,132.1,132.03,36.3664]
[1726230210647,3.7846,132.11,132.03,36.3664]
[1726230210849,5.147,132.12,132.03,36.3664]
[1726230211041,6.19853747,132.11,132.03,36.3664]
[1726230211244,1.3627,132.12,132.08,3.7852]
[1726230211446,6.19837222,132.11,132.03,36.3664]
[1726230211643,1.3627,132.12,132.03,36.3664]
[1726230211953,6.19836054,132.11,132.05,3.7862]
[1726230212147,9.98326054,132.1,132.05,3.7862]
[1726230212347,1.3627,132.12,132.06,3.7857]
[1726230212551,9.98238039,132.11,132.06,3.7857]
[1726230212749,6.19768039,132.1,132.06,3.7857]
[1726230212954,3.7847,132.11,132.06,3.7857]
[1726230213248,6.1980894,132.1,132.03,36.3664]
[1726230213454,1.3627,132.12,132.03,36.3664]
[1726230213655,6.19828942,132.11,132.03,36.3664]
[1726230213947,6.19828942,132.1,132.03,36.3664]
[1726230214147,23.1627,132.12,132.03,23.2464]
[1726230214450,6.19817383,132.11,132.03,23.2464]
[1726230214653,3.7846,132.11,132.03,23.2464]
[1726230214848,23.1627,132.12,132.03,1.4464]
[1726230214849,1.3627,132.12,132.03,1.4464]
[1726230215049,3.7858,132.07,132.03,1.4464]
[1726230215353,21.8,132.08,132.03,1.4464]
[1726230215545,25.5849,132.1,132.05,3.7861]
[1726230215740,6.19722939,132.09,132.03,1.4464]
[1726230215950,21.8,132.1,132.03,1.4464]
[1726230216151,6.19649402,132.09,132.03,1.4464]
[1726230216449,36.266,132.11,132.03,1.4464]
[1726230216648,6.19630922,132.1,132.03,5.2331]
[1726230216861,6.19630922,132.09,132.03,5.2331]
[1726230217062,36.266,132.11,132.03,5.2331]
[1726230217253,3.7853,132.09,132.03,5.2331]
[1726230217558,36.266,132.11,132.03,5.2331]
[1726230217852,36.266,132.11,132.01,13.7873]
[1726230218053,34.9,132.09,132.01,10.0]
[1726230218352,6.19589612,132.08,132.01,10.0]
[1726230218554,6.19589612,132.07,132.01,10.0]
[1726230218847,34.9,132.09,132.01,10.0]
[1726230218848,6.19589612,132.06,132.01,10.0]
[1726230219049,3.7857,132.07,132.01,13.7873]
[1726230219247,6.19488821,132.06,132.01,13.7873]
[1726230219451,34.9,132.09,132.01,10.0]
[1726230219646,3.786,132.06,132.01,10.0]
[1726230220043,36.266,132.11,132.01,10.0]
[1726230220250,6.1951191,132.1,132.01,10.0]
[1726230220450,6.1951191,132.09,132.02,1.3217]
[1726230220754,6.1951191,132.08,132.05,3.786]
[1726230220955,5.1505,132.11,132.05,3.786]
[1726230221458,6.19724879,132.1,132.02,1.3217]
[1726230221650,6.19724879,132.09,132.02,1.3217]
[1726230221853,5.147,132.12,132.06,3.7858]
[1726230222053,6.19747557,132.11,132.06,3.7858]
[1726230222254,6.19747557,132.1,132.02,36.2217]
[1726230222457,6.19747557,132.09,132.05,3.786]
[1726230222646,6.19747557,132.08,132.02,36.2217]
[1726230222847,1.3627,132.12,132.04,34.9]
[1726230223053,6.19793215,132.11,132.05,5.11284553]
[1726230223254,6.19793215,132.1,132.05,5.11284553]
[1726230223453,6.19793215,132.09,132.05,5.11284553]
[1726230223653,3.784,132.13,132.07,3.7855]